fUST/lending_fUST_20260103
["ID","MTS","AMOUNT","RATE_DAILY","PERIOD"]
[400367056,1767445659110,174.46640061,0.00012374,2]
[400367057,1767445660716,-247.48270903,0.00012374,2]
[400367058,1767445674249,-139.69089036,0.00012374,2]
[400367059,1767445679968,220.17,8.238e-05,2]
[400367060,1767445680624,220.17,8.238e-05,2]
[400367061,1767445680696,220.17,8.238e-05,2]
[400367062,1767445723919,-415.16,0.000124,2]
[400367063,1767445734743,157.99,0.00010489,2]
[400367064,1767445735239,210.65,0.00010945,2]
[400367065,1767445736133,263.32,0.00011401,2]
[400367066,1767445736629,315.98,0.00011857,2]
[400367067,1767445737103,368.64,0.00012313,2]
[400367068,1767445739734,300.0,0.000124,2]
[400367069,1767445739760,3732.18662041,0.000124,2]
[400367070,1767445769521,-688.44590162,0.00012321,2]
[400367071,1767445771116,-243.25603843,0.00012321,2]
[400367072,1767445771937,-2719.12855721,0.00012321,2]
[400367073,1767445772586,-193.47,0.000124,2]
[400367075,1767445783315,-185.72165237,0.00012445,2]
[400367076,1767445785886,-192.73300448,0.00012445,2]
[400367077,1767445787396,-249.5425675,0.00012445,2]
[400367078,1767445788968,-189.25028351,0.00012445,2]
[400367079,1767445804606,238.0,0.00012185,2]
[400367080,1767445812600,179.53,0.00011475,2]
[400367081,1767445813063,215.44,0.00011934,2]
[400367082,1767445819668,-251.35,0.00012393,2]
[400367083,1767445821134,-211.95799355,0.00012445,2]
[400367084,1767445823129,-166.98156703,0.00012445,2]
[400367085,1767445823153,-88.38473772,0.00012445,2]
[400367086,1767445825411,-228.08421644,0.00012445,2]
[400367087,1767445829547,3803.81293156,0.00012393,2]
[400367094,1767445831962,-279.53104584,0.00012445,2]
[400367095,1767445831982,-17285.99638412,0.0001257,2]
[400367096,1767445831999,-678.08346952,0.0001257,2]
[400367097,1767445832011,-515.01157881,0.0001257,2]
[400367098,1767445832026,-8995.3,0.0001257,2]
[400367106,1767445832212,406.95,0.000122,2]
[400367107,1767445836202,-317.21041581,0.000125,2]
[400367115,1767445837970,-89.73958419,0.000125,2]
[400367116,1767445837981,-500.0,0.00012569,2]
[400367117,1767445837991,-160.26041581,0.00012569,2]
[400367118,1767445838003,-194.56970863,0.00012569,2]
[400367119,1767445838014,-500.0,0.00012569,2]
[400367120,1767445838024,-500.0,0.00012569,2]
[400367121,1767445838039,-500.0,0.00012569,2]
[400367122,1767445838048,-202.37180065,0.00012569,2]
[400367123,1767445838076,-297.62819935,0.00012569,2]
[400367125,1767445838097,-500.0,0.00012569,2]
[400367128,1767445838118,-500.0,0.00012569,2]
[400367130,1767445838142,-500.0,0.00012569,2]
[400367131,1767445838166,-500.0,0.00012569,2]
[400367132,1767445838187,-468.11790533,0.00012569,2]
[400367133,1767445838205,-64.18180135,0.00012569,2]
[400367134,1767445838248,-435.81819865,0.00012569,2]
[400367135,1767445838269,-500.0,0.00012569,2]
[400367136,1767445838291,-500.0,0.00012569,2]
[400367137,1767445838311,-500.0,0.00012569,2]
[400367138,1767445838328,-500.0,0.00012569,2]
[400367139,1767445838350,-500.0,0.00012569,2]
[400367140,1767445838365,-500.0,0.00012569,2]
[400367141,1767445838384,-500.0,0.00012569,2]
[400367142,1767445838400,-500.0,0.00012569,2]
[400367143,1767445838416,-500.0,0.00012569,2]
[400367144,1767445838433,-500.0,0.00012569,2]
[400367145,1767445838450,-614.91954577,0.00012569,2]
[400367146,1767445838466,-500.0,0.00012569,2]
[400367147,1767445838483,-500.0,0.00012569,2]
[400367148,1767445838500,-500.0,0.00012569,2]
[400367149,1767445838517,-500.0,0.00012569,2]
[400367150,1767445838534,-500.0,0.00012569,2]
[400367151,1767445838550,-500.0,0.00012569,2]
[400367152,1767445838568,-376.72921384,0.00012569,2]
[400367153,1767445838584,-500.0,0.00012569,2]
[400367154,1767445838600,-416.4777834,0.00012569,2]
[400367155,1767445838616,-500.0,0.00012569,2]
[400367156,1767445838633,-500.0,0.00012569,2]
[400367157,1767445838650,-500.0,0.00012569,2]
[400367158,1767445838666,-500.0,0.00012569,2]
[400367159,1767445838684,-500.0,0.00012569,2]
[400367160,1767445838701,-500.0,0.00012569,2]
[400367161,1767445838719,-500.0,0.00012569,2]
[400367162,1767445838736,-645.23514218,0.00012569,2]
[400367163,1767445838753,-500.0,0.00012569,2]
[400367164,1767445838771,-500.0,0.00012569,2]
[400367165,1767445838789,-500.0,0.00012569,2]
[400367166,1767445838806,-500.0,0.00012569,2]
[400367167,1767445838824,-500.0,0.00012569,2]
[400367168,1767445838841,-500.0,0.00012569,2]
[400367169,1767445838860,-500.0,0.00012569,2]
[400367170,1767445838878,-500.0,0.00012569,2]
[400367171,1767445838893,-500.0,0.00012569,2]
[400367172,1767445838903,-500.0,0.00012569,2]
[400367173,1767445838913,-500.0,0.00012569,2]
[400367174,1767445838924,-500.0,0.00012569,2]
[400367175,1767445838934,-500.0,0.00012569,2]
[400367176,1767445838944,-500.0,0.00012569,2]
[400367177,1767445838955,-500.0,0.00012569,2]
[400367178,1767445839146,-500.0,0.00012569,2]
[400367179,1767445839170,-500.0,0.00012569,2]
[400367180,1767445839181,-379.91608917,0.00012569,2]
[400367181,1767445839190,-500.0,0.00012569,2]
[400367182,1767445839199,-220.77604417,0.00012569,2]
[400367183,1767445839209,-500.0,0.00012569,2]
[400367184,1767445839219,-500.0,0.00012569,2]
[400367185,1767445839229,-500.0,0.00012569,2]
[400367186,1767445839239,-500.0,0.00012569,2]
[400367187,1767445839250,-500.0,0.00012569,2]
[400367188,1767445839259,-500.0,0.00012569,2]
[400367189,1767445839270,-500.0,0.00012569,2]
[400367190,1767445839279,-496.73486288,0.00012569,2]
[400367191,1767445839289,-500.0,0.00012569,2]
[400367192,1767445839299,-290.94654695,0.00012569,2]
[400367193,1767445839308,-500.0,0.00012569,2]
[400367194,1767445839318,-500.0,0.00012569,2]
[400367195,1767445839328,-500.0,0.00012569,2]
[400367196,1767445839338,-500.0,0.00012569,2]
[400367197,1767445839347,-593.75941993,0.00012569,2]
[400367198,1767445839357,-500.0,0.00012569,2]
[400367199,1767445839367,-500.0,0.00012569,2]
[400367200,1767445839377,-500.0,0.00012569,2]
[400367201,1767445839387,-500.0,0.00012569,2]
[400367202,1767445839396,-500.0,0.00012569,2]
[400367203,1767445839406,-500.0,0.00012569,2]
[400367204,1767445839416,-500.0,0.00012569,2]
[400367205,1767445839426,-500.0,0.00012569,2]
[400367206,1767445839435,-500.0,0.00012569,2]
[400367207,1767445839445,-500.0,0.00012569,2]
[400367208,1767445839455,-500.0,0.00012569,2]
[400367209,1767445839464,-500.0,0.00012569,2]
[400367210,1767445839474,-972525.60856755,0.0001257,2]
[400367211,1767445839483,-762.09101546,0.00012571,2]
[400367212,1767445839494,-345.31748588,0.0001262,2]
[400367213,1767445839503,-300.0,0.00012667,2]
[400367214,1767445839513,-1200.0,0.00012668,2]
[400367215,1767445839522,-956.35190653,0.00012669,2]
[400367216,1767445839533,-50000.0,0.00012669,2]
[400367217,1767445839542,-500.0,0.00012671,2]
[400367218,1767445839552,-500.0,0.00012672,2]
[400367219,1767445839561,-500.0,0.00012672,2]
[400367220,1767445839570,-500.0,0.00012672,2]
[400367221,1767445839579,-500.0,0.00012672,2]
[400367222,1767445839589,-500.0,0.00012672,2]
[400367223,1767445839599,-500.0,0.00012672,2]
[400367224,1767445839609,-500.0,0.00012672,2]
[400367225,1767445839618,-500.0,0.00012672,2]
[400367226,1767445839628,-500.0,0.00012672,2]
[400367227,1767445839637,-500.0,0.00012672,2]
[400367228,1767445839649,-500.0,0.00012672,2]
[400367229,1767445839659,-500.0,0.00012672,2]
[400367230,1767445839669,-762.09101546,0.00012703,2]
[400367231,1767445839678,-762.09101546,0.00012836,2]
[400367232,1767445839688,-287.25,0.00012852,2]
[400367233,1767445839698,-158.88847007,0.00012891,2]
[400367234,1767445839708,-500.0,0.00012892,2]
[400367236,1767445839718,-205.45055031,0.00012892,2]
[400367237,1767445839728,-6118.66309715,0.000129,2]
[400367238,1767445839739,-406.95,0.000129,2]
[400367240,1767445839749,-500.0,0.00012945,2]
[400367242,1767445839759,-762.09101546,0.00012968,2]
[400367244,1767445839769,-550.0,0.00013029,2]
[400367246,1767445839779,-13513.47320088,0.00013068,2]
[400367247,1767445839788,-151.0,0.000131,2]
[400367248,1767445839798,-762.09101546,0.000131,2]
[400367249,1767445839807,-151.0,0.000131,2]
[400367250,1767445839817,-722.11,0.0001319,2]
[400367251,1767445839828,-163.82,0.0001319,2]
[400367252,1767445839839,-163.82,0.0001319,2]
[400367253,1767445839849,-163.82,0.0001319,2]
[400367254,1767445839859,-163.82,0.0001319,2]
[400367255,1767445839869,-163.81,0.0001319,2]
[400367256,1767445839879,-151.0,0.000132,2]
[400367257,1767445839888,-151.0,0.000132,2]
[400367258,1767445839899,-151.0,0.000132,2]
[400367259,1767445839908,-151.0,0.000132,2]
[400367260,1767445839918,-406.95,0.000132,2]
[400367261,1767445839928,-291.78649388,0.00013219,2]
[400367262,1767445839938,-179.25919058,0.00013273,2]
[400367263,1767445839948,-500.191811,0.00013273,2]
[400367264,1767445839957,-500.0,0.00013273,2]
[400367265,1767445839967,-489.45983528,0.00013273,2]
[400367266,1767445839977,-500.0,0.00013273,2]
[400367267,1767445839986,-500.74961065,0.00013273,2]
[400367268,1767445839996,-500.70079178,0.00013273,2]
[400367269,1767445840006,-500.91796421,0.00013273,2]
[400367270,1767445840016,-500.0,0.00013273,2]
[400367271,1767445840028,-161.79331584,0.00013273,2]
[400367272,1767445840038,-441.28107065,0.00013273,2]
[400367273,1767445840047,-500.0,0.00013273,2]
[400367274,1767445840057,-500.0,0.00013273,2]
[400367275,1767445840067,-500.0,0.00013273,2]
[400367276,1767445840077,-500.0,0.00013273,2]
[400367277,1767445840087,-500.0,0.00013273,2]
[400367278,1767445840096,-500.0,0.00013273,2]
[400367279,1767445840107,-530.84744,0.00013273,2]
[400367280,1767445840116,-500.0,0.00013273,2]
[400367281,1767445840126,-500.55502892,0.00013273,2]
[400367282,1767445840136,-371.29616414,0.00013273,2]
[400367283,1767445840145,-500.0,0.00013273,2]
[400367284,1767445840155,-500.35714375,0.00013273,2]
[400367285,1767445840164,-500.40812858,0.00013273,2]
[400367286,1767445840174,-500.0,0.00013273,2]
[400367287,1767445840184,-500.48237545,0.00013273,2]
[400367288,1767445840193,-500.0,0.00013273,2]
[400367289,1767445840202,-502.52676973,0.00013273,2]
[400367290,1767445840213,-500.0,0.00013273,2]
[400367291,1767445840222,-500.0,0.00013273,2]
[400367292,1767445840231,-500.0,0.00013273,2]
[400367293,1767445840241,-500.0,0.00013273,2]
[400367294,1767445840250,-500.0,0.00013273,2]
[400367295,1767445840260,-500.0,0.00013273,2]
[400367296,1767445840270,-323.16,0.00013311,2]
[400367298,1767445840279,-406.95,0.000135,2]
[400367299,1767445840289,-6014.64117995,0.0001354,2]
[400367300,1767445840299,-300.0,0.00013673,2]
[400367301,1767445840308,-500.0,0.00013698,2]
[400367302,1767445840318,-500.0,0.00013698,2]
[400367303,1767445840328,-500.0,0.00013698,2]
[400367304,1767445840337,-500.0,0.00013698,2]
[400367305,1767445840347,-1730.16,0.00013698,2]
[400367306,1767445840356,-1730.16,0.00013698,2]
[400367307,1767445840366,-1730.16,0.00013698,2]
[400367308,1767445840376,-1730.16,0.00013698,2]
[400367309,1767445840386,-191.60962152,0.00013698,2]
[400367310,1767445840396,-518.65088153,0.00013698,2]
[400367311,1767445840406,-500.0,0.00013698,2]
[400367312,1767445840416,-500.0,0.00013698,2]
[400367313,1767445840426,-500.0,0.00013698,2]
[400367314,1767445840436,-500.0,0.00013698,2]
[400367315,1767445840446,-500.0,0.00013698,2]
[400367316,1767445840456,-500.0,0.00013698,2]
[400367317,1767445840466,-500.0,0.00013698,2]
[400367318,1767445840476,-500.0,0.00013698,2]
[400367319,1767445840485,-500.0,0.00013698,2]
[400367320,1767445840495,-500.0,0.00013698,2]
[400367321,1767445840504,-500.0,0.00013698,2]
[400367322,1767445840514,-500.0,0.00013698,2]
[400367323,1767445840523,-500.0,0.00013698,2]
[400367324,1767445840532,-500.0,0.00013698,2]
[400367325,1767445840542,-529.5136224,0.00013698,2]
[400367326,1767445840551,-1228.877639,0.00013699,2]
[400367327,1767445840560,-500.0,0.00013699,2]
[400367328,1767445840570,-150.17622078,0.00013699,2]
[400367329,1767445840579,-500.0,0.00013699,2]
[400367330,1767445840589,-505.70357448,0.00013699,2]
[400367331,1767445840599,-500.0,0.00013699,2]
[400367332,1767445840608,-152.47965923,0.00013699,2]
[400367333,1767445840619,-500.0,0.00013699,2]
[400367334,1767445840629,-500.0,0.00013699,2]
[400367335,1767445840639,-500.0,0.00013699,2]
[400367336,1767445840648,-500.0,0.00013699,2]
[400367337,1767445840657,-500.0,0.00013699,2]
[400367338,1767445840667,-409.51288327,0.00013699,2]
[400367339,1767445840676,-500.0,0.00013699,2]
[400367340,1767445840686,-500.0,0.00013699,2]
[400367341,1767445840695,-168.67407301,0.00013699,2]
[400367342,1767445840705,-500.0,0.00013699,2]
[400367343,1767445840714,-440.35279329,0.00013699,2]
[400367344,1767445840724,-504.2982278,0.00013699,2]
[400367345,1767445840733,-500.0,0.00013699,2]
[400367346,1767445840743,-500.0,0.00013699,2]
[400367347,1767445840752,-500.0,0.00013699,2]
[400367348,1767445840762,-500.0,0.00013699,2]
[400367349,1767445840771,-500.0,0.00013699,2]
[400367350,1767445840781,-500.0,0.00013699,2]
[400367351,1767445840791,-500.0,0.00013699,2]
[400367352,1767445840800,-500.0,0.00013699,2]
[400367353,1767445840810,-604.84296719,0.00013699,2]
[400367354,1767445840820,-500.0,0.00013699,2]
[400367355,1767445840830,-500.0,0.00013699,2]
[400367356,1767445840840,-500.0,0.00013699,2]
[400367357,1767445840850,-500.0,0.00013699,2]
[400367358,1767445840859,-500.0,0.00013699,2]
[400367359,1767445840869,-500.0,0.00013699,2]
[400367360,1767445840879,-500.0,0.00013699,2]
[400367361,1767445840888,-359.07,0.0001377,2]
[400367362,1767445840898,-500.0,0.0001382,2]
[400367363,1767445840909,-1730.16,0.0001382,2]
[400367364,1767445840918,-1000.0,0.00013821,2]
[400367365,1767445840927,-1000.0,0.00013821,2]
[400367366,1767445840938,-1000.0,0.00013821,2]
[400367367,1767445840948,-500.37577239,0.00013821,2]
[400367368,1767445840957,-1000.0,0.00013821,2]
[400367369,1767445840967,-1000.0,0.00013821,2]
[400367370,1767445840976,-1000.0,0.00013821,2]
[400367371,1767445840986,-1000.0,0.00013821,2]
[400367372,1767445840995,-1000.0,0.00013821,2]
[400367373,1767445841005,-1000.0,0.00013821,2]
[400367374,1767445841015,-1000.0,0.00013821,2]
[400367375,1767445841025,-1000.0,0.00013821,2]
[400367376,1767445841038,-370.97976049,0.00013821,2]
[400367377,1767445841047,-1000.0,0.00013821,2]
[400367378,1767445841057,-1000.0,0.00013821,2]
[400367379,1767445841067,-420.0,0.00013896,2]
[400367380,1767445841076,-1680.0,0.00013897,2]
[400367381,1767445841086,-406.95,0.000139,2]
[400367382,1767445841096,-1762.70381307,0.00014028,2]
[400367383,1767445841195,-500.0,0.00014173,2]
[400367384,1767445841220,-1730.16,0.00014173,2]
[400367385,1767445841230,-406.95,0.000142,2]
[400367386,1767445841239,-600.0,0.00014221,2]
[400367387,1767445841249,-1000.0,0.00014247,2]
[400367388,1767445841259,-1000.0,0.00014247,2]
[400367389,1767445841268,-303.83727218,0.00014247,2]
[400367390,1767445841278,-1000.0,0.00014247,2]
[400367391,1767445841287,-172.99015439,0.00014247,2]
[400367392,1767445841297,-535.88655536,0.00014247,2]
[400367393,1767445841306,-970.94631538,0.00014247,2]
[400367394,1767445841315,-1000.0,0.00014247,2]
[400367395,1767445841324,-1000.0,0.00014247,2]
[400367396,1767445841334,-576.38948379,0.00014247,2]
[400367397,1767445841343,-1000.0,0.00014247,2]
[400367398,1767445841352,-1000.0,0.00014247,2]
[400367399,1767445841362,-1000.0,0.00014247,2]
[400367400,1767445841371,-1000.0,0.00014247,2]
[400367401,1767445841380,-981.40904469,0.00014247,2]
[400367402,1767445841389,-1000.0,0.00014247,2]
[400367403,1767445841399,-1131.64054313,0.00014247,2]
[400367404,1767445841408,-697.14280947,0.00014247,2]
[400367405,1767445841417,-1000.0,0.00014247,2]
[400367406,1767445841427,-781.48970977,0.00014247,2]
[400367407,1767445841436,-1000.0,0.00014247,2]
[400367408,1767445841446,-1000.0,0.00014247,2]
[400367409,1767445841456,-1000.0,0.00014247,2]
[400367410,1767445841465,-1000.0,0.00014247,2]
[400367411,1767445841475,-1000.0,0.00014247,2]
[400367412,1767445841484,-1041.66666667,0.00014247,2]
[400367413,1767445841494,-163.3,0.00014258,2]
[400367414,1767445841504,-500.0,0.00014368,2]
[400367415,1767445841513,-1730.16,0.00014368,2]
[400367416,1767445841522,-1500.0,0.00014368,2]
[400367417,1767445841531,-1572.32659835,0.00014368,2]
[400367418,1767445841540,-1001.20972586,0.00014368,2]
[400367419,1767445841550,-1500.0,0.00014368,2]
[400367420,1767445841559,-1500.0,0.00014368,2]
[400367421,1767445841568,-1500.0,0.00014368,2]
[400367422,1767445841577,-1502.86490349,0.00014368,2]
[400367423,1767445841587,-1500.0,0.00014368,2]
[400367424,1767445841596,-1500.0,0.00014368,2]
[400367425,1767445841606,-1500.0,0.00014368,2]
[400367426,1767445841615,-1500.0,0.00014368,2]
[400367427,1767445841624,-1500.0,0.00014368,2]
[400367428,1767445841634,-1500.0,0.00014368,2]
[400367429,1767445841643,-406.95,0.000146,2]
[400367430,1767445841652,-407.47463334,0.0001462,2]
[400367431,1767445841661,-737.36429423,0.00014768,2]
[400367432,1767445841671,-1501.34335094,0.00014795,2]
[400367433,1767445841680,-1500.0,0.00014795,2]
[400367434,1767445841691,-1000.0,0.00014795,2]
[400367435,1767445841701,-1500.0,0.00014795,2]
[400367436,1767445841711,-100000.0,0.00014882,2]
[400367437,1767445841720,-406.95,0.000149,2]
[400367438,1767445841729,-500.0,0.00014916,2]
[400367439,1767445841739,-500.0,0.00014916,2]
[400367440,1767445841748,-673.31490018,0.00014916,2]
[400367441,1767445841758,-2122.72672579,0.00014916,2]
[400367442,1767445841767,-2000.0,0.00014916,2]
[400367443,1767445841777,-1000.0,0.00015,2]
[400367444,1767445841786,-800.0,0.00015068,2]
[400367445,1767445841796,-314.28,0.000151,2]
[400367446,1767445841806,-406.95,0.000152,2]
[400367447,1767445841815,-587.0,0.00015245,2]
[400367448,1767445841824,-1610.0,0.00015246,2]
[400367449,1767445841834,-2000.0,0.00015342,2]
[400367450,1767445841843,-2569.05571961,0.00015388,2]
[400367451,1767445841853,-1167.75741766,0.00015464,2]
[400367452,1767445841862,-406.95,0.000156,2]
[400367453,1767445841871,-2500.0,0.0001589,2]
[400367454,1767445841881,-406.95,0.000159,2]
[400367455,1767445841890,-500.0,0.00015948,2]
[400367456,1767445841899,-1730.16,0.00015948,2]
[400367457,1767445841908,-3000.0,0.00016,2]
[400367458,1767445841918,-3000.0,0.0001601,2]
[400367459,1767445841927,-3000.0,0.0001602,2]
[400367460,1767445841937,-3000.0,0.0001603,2]
[400367461,1767445841947,-3000.0,0.0001604,2]
[400367462,1767445841957,-500.0,0.00016047,2]
[400367463,1767445841966,-500.0,0.00016047,2]
[400367464,1767445841976,-500.0,0.00016047,2]
[400367465,1767445841985,-500.0,0.00016047,2]
[400367466,1767445841995,-500.0,0.00016047,2]
[400367467,1767445842004,-500.0,0.00016047,2]
[400367468,1767445842014,-500.0,0.00016047,2]
[400367469,1767445842023,-500.0,0.00016047,2]
[400367470,1767445842036,-500.0,0.00016047,2]
[400367471,1767445842046,-500.0,0.00016047,2]
[400367472,1767445842055,-500.0,0.00016047,2]
[400367473,1767445842064,-500.0,0.00016047,2]
[400367474,1767445842073,-500.0,0.00016047,2]
[400367475,1767445842083,-500.0,0.00016047,2]
[400367476,1767445842092,-500.0,0.00016047,2]
[400367477,1767445842101,-500.0,0.00016047,2]
[400367478,1767445842111,-484.05461293,0.00016047,2]
[400367479,1767445842121,-3000.0,0.0001605,2]
[400367480,1767445842131,-3000.0,0.0001606,2]
[400367481,1767445842140,-6118.66309711,0.0001606,2]
[400367482,1767445842150,-3000.0,0.0001607,2]
[400367483,1767445842160,-3000.0,0.0001608,2]
[400367484,1767445842176,-3000.0,0.0001609,2]
[400367485,1767445842186,-3000.0,0.000161,2]
[400367486,1767445842195,-3000.0,0.0001611,2]
[400367487,1767445842205,-3000.0,0.0001612,2]
[400367488,1767445842215,-250.0,0.00016128,2]
[400367489,1767445842225,-250.0,0.00016128,2]
[400367490,1767445842235,-250.0,0.00016128,2]
[400367491,1767445842244,-250.0,0.00016128,2]
[400367492,1767445842253,-250.0,0.00016128,2]
[400367493,1767445842263,-269.61503092,0.00016128,2]
[400367494,1767445842273,-2674.60743027,0.00016128,2]
[400367495,1767445842282,-250.0,0.00016128,2]
[400367496,1767445842292,-250.0,0.00016128,2]
[400367497,1767445842301,-250.0,0.00016128,2]
[400367498,1767445842311,-250.0,0.00016128,2]
[400367499,1767445842321,-30000.0,0.00016128,2]
[400367500,1767445842331,-251.79035134,0.00016128,2]
[400367501,1767445842341,-3000.0,0.0001613,2]
[400367502,1767445842350,-3000.0,0.0001614,2]
[400367503,1767445842360,-3000.0,0.0001615,2]
[400367504,1767445842369,-3000.0,0.0001616,2]
[400367505,1767445842379,-1093.84384208,0.00016164,2]
[400367506,1767445842388,-5121.726876,0.0001617,2]
[400367507,1767445842397,-1080.92186024,0.00016199,2]
[400367508,1767445842407,-16856.74294805,0.00016338,2]
[400367509,1767445842417,-500.0,0.00016437,2]
[400367510,1767445842427,-500.0,0.00016437,2]
[400367511,1767445842436,-500.0,0.00016437,2]
[400367512,1767445842446,-1730.16,0.00016437,2]
[400367513,1767445842456,-1730.16,0.00016437,2]
[400367514,1767445842467,-1730.16,0.00016437,2]
[400367515,1767445842476,-151.0,0.00016438,2]
[400367516,1767445842487,-792.7,0.00016438,2]
[400367517,1767445842496,-151.0,0.00016438,2]
[400367518,1767445842506,-151.0,0.00016438,2]
[400367519,1767445842516,-1482.04748992,0.00016438,2]
[400367520,1767445842526,-1482.04748992,0.00016438,2]
[400367521,1767445842535,-1482.04748992,0.00016438,2]
[400367522,1767445842545,-1482.04748992,0.00016438,2]
[400367523,1767445842555,-1482.04748992,0.00016438,2]
[400367524,1767445842564,-1482.04748992,0.00016438,2]
[400367526,1767445842574,-1482.04748992,0.00016438,2]
[400367529,1767445842584,-1482.04748992,0.00016438,2]
[400367531,1767445842593,-1482.04748992,0.00016438,2]
[400367533,1767445842603,-1482.04748992,0.00016438,2]
[400367535,1767445842613,-1482.04748992,0.00016438,2]
[400367537,1767445842622,-1482.04748992,0.00016438,2]
[400367538,1767445842631,-1482.04748992,0.00016438,2]
[400367539,1767445842640,-1482.04748992,0.00016438,2]
[400367540,1767445842650,-1482.04748992,0.00016438,2]
[400367541,1767445842659,-1482.04748992,0.00016438,2]
[400367542,1767445842668,-1482.04748992,0.00016438,2]
[400367543,1767445842678,-1482.04748992,0.00016438,2]
[400367544,1767445842688,-1482.04748992,0.00016438,2]
[400367545,1767445842697,-1482.04748992,0.00016438,2]
[400367546,1767445842707,-1482.04748992,0.00016438,2]
[400367547,1767445842717,-1482.04748992,0.00016438,2]
[400367548,1767445842726,-1482.04748992,0.00016438,2]
[400367549,1767445842737,-1482.04748992,0.00016438,2]
[400367550,1767445842747,-1482.04748992,0.00016438,2]
[400367551,1767445842757,-1482.04748992,0.00016438,2]
[400367552,1767445842767,-1482.04748992,0.00016438,2]
[400367553,1767445842776,-1482.04748992,0.00016438,2]
[400367554,1767445842786,-1482.04748992,0.00016438,2]
[400367555,1767445842796,-1482.04748992,0.00016438,2]
[400367556,1767445842806,-1482.04748992,0.00016438,2]
[400367557,1767445842816,-1482.04748992,0.00016438,2]
[400367558,1767445842826,-1482.04748992,0.00016438,2]
[400367559,1767445842835,-1482.04748992,0.00016438,2]
[400367560,1767445842845,-1482.04748992,0.00016438,2]
[400367561,1767445842855,-1482.04748992,0.00016438,2]
[400367562,1767445842864,-1482.04748992,0.00016438,2]
[400367563,1767445842874,-1482.04748992,0.00016438,2]
[400367564,1767445842884,-1482.04748992,0.00016438,2]
[400367565,1767445842894,-1482.04748992,0.00016438,2]
[400367566,1767445842903,-1482.04748992,0.00016438,2]
[400367567,1767445842913,-1482.04748992,0.00016438,2]
[400367568,1767445842923,-1482.04748992,0.00016438,2]
[400367569,1767445842933,-1482.04748992,0.00016438,2]
[400367570,1767445842943,-1482.04748992,0.00016438,2]
[400367571,1767445842952,-1482.04748992,0.00016438,2]
[400367572,1767445842962,-1482.04748992,0.00016438,2]
[400367573,1767445842971,-1482.04748992,0.00016438,2]
[400367574,1767445843092,-151.0,0.00016438,2]
[400367575,1767445843103,-151.0,0.00016438,2]
[400367576,1767445843112,-151.0,0.00016438,2]
[400367577,1767445843122,-151.0,0.00016438,2]
[400367578,1767445843131,-154.76883189,0.00016438,2]
[400367579,1767445843140,-164.0102757,0.00016438,2]
[400367580,1767445843149,-3000.0,0.00016438,2]
[400367581,1767445843159,-152.0,0.00016438,3]
[400367582,1767445843169,-259.79445274,0.00016438,2]
[400367583,1767445843178,-158.06458157,0.00016466,3]
[400367584,1767445843187,-200.0,0.00016473,2]
[400367585,1767445843196,-500.0,0.00016564,2]
[400367587,1767445843206,-1730.16,0.00016564,2]
[400367588,1767445843215,-250.0,0.0001661,2]
[400367589,1767445843224,-469.6317808,0.0001662,2]
[400367590,1767445843234,-2912.27123802,0.00016676,2]
[400367591,1767445843243,-823.0,0.00016724,2]
[400367592,1767445843253,-3375.40762615,0.00016747,2]
[400367593,1767445843263,-792.7,0.00016944,2]
[400367594,1767445843272,-151.0,0.00016986,2]